[Event "FIDE World School-ch O-15 2025"]
[Site "Vrnjacka Banja"]
[Date "2025.03.24"]
[Round "5.1"]
[White "Tabatadze, Erekle"]
[Black "Kabinazar, Nurmukhammed"]
[Result "1/2-1/2"]
[Annotator "TA"]
[ECO "E46"]
[WhiteElo "2180"]
[BlackElo "2057"]
[PlyCount "239"]
[EventDate "2025.03.19"]
[EventType "swiss"]
[EventCountry "SRB"]
[SourceTitle "playchess.com"]
[Source "ChessBase"]
[SourceQuality "1"]
[TimeControl "5400+30"]

{[%evp 13,239,13,5,-40,-21,-27,-23,-24,-25,-33,-33,-39,-7,-9,6,0,4,0,2,0,18,23,41,73,63,31,31,35,41,64,51,14,160,146,213,231,217,214,231,214,292,185,193,137,125,57,48,50,54,46,53,69,85,84,85,79,83,82,81,75,58,58,68,75,70,72,66,70,110,110,110,110,110,110,110,110,110,110,110,110,110,110,110,110,110,110,110,110,110,110,110,110,110,110,110,110,110,110,110,110,110,110,110,110,110,110,110,110,110,110,110,110,110,110,110,110,110,13,56,12,110,110,110,15,110,110,110,110,110,75,110,15,13,8,8,8,8,0,0,0,0,0,0,0,0,0,0,0,0,0,0,0,0,0,0,0,0,0,0,0,0,0,0,0,0,0,0,0,0,0,0,0,0,0,8,0,15,0,0,0,8,0,0,0,14,0,0,0,8,0,28,24,15,16,15,15,15,16,24,0,0,0,0,0,0,0,0,0,0,0,0,0,0,0,0,0,0,0,6,0,0,0,7,0,0,0,0,0]} 1. d4 {[%emt 0:02:52]} Nf6 {[%emt 0:00:09]} 2. c4 {[%emt 0:00:18]} e6 {[%emt 0:00:09]} 3. Nc3 {[%emt 0:00:08]} Bb4 {[%emt 0:00:22]} 4. e3 {[%emt 0:00:20]} O-O {[%emt 0:00:28]} 5. Nge2 {[%emt 0:01:59]} d5 {[%emt 0:01:05]} 6. a3 {[%emt 0:01:02]} Bd6 {[%emt 0:02:08]} 7. c5 {[%emt 0:05:20]} Be7 {[%emt 0:00:08]} 8. f4 {[%emt 0:03:44] E46: Nimzo-Indian: Rubinstein: 4 e3 0-0 5 Ne2 without early Bd3.} c6 {[%emt 0:10:59]} 9. Ng3 {[%emt 0:00:30]} Nbd7 {[%emt 0:05:33]} 10. Bd3 {[%emt 0:02:49] Black has an edge.} a5 {[%emt 0:01:56]} 11. Bd2 {[%emt 0:03:34]} b6 {[%emt 0:08:44]} 12. b4 {[%emt 0:01:02]} Bb7 $146 {[%emt 0:00:45]} ({Predecessor:} 12... Ba6 13. Bxa6 Rxa6 14. O-O Qa8 15. Rb1 axb4 16. axb4 Qb7 17. Nh5 Nxh5 18. Qxh5 f5 {½-½ Richardson,J (2298)-Emms,J (2484) BCF-chT1a 0910 (4NCL) 2009 (6.3)}) 13. O-O {[%emt 0:04:39]} Qc7 {[%emt 0:08:57]} 14. Qe2 {[%emt 0:17:05]} Rfb8 {[%emt 0:04:17]} 15. e4 {[%emt 0:02:20]} dxe4 {[%emt 0:01:37]} 16. Ncxe4 {[%emt 0:01:28]} axb4 {[%emt 0:11:32]} 17. axb4 {[%emt 0:00:58]} Rd8 {[%emt 0:00:45]} 18. Rxa8 {[%emt 0:01:35]} Rxa8 {[%emt 0:01:43]} 19. Ng5 {[%emt 0:07:52][%cal Og5e6]} Nf8 {[%emt 0:06:26]} 20. f5 {[%emt 0:00:55][%cal Rf5e6]} Bc8 {[%emt 0:05:51]} 21. fxe6 {[%emt 0:03:04]} Bxe6 {[%emt 0:01:06]} 22. Nh5 {[%emt 0:08:17]} Ra2 {[%emt 0:04:45]} (22... Qd8 $11 {keeps the balance.}) 23. Nxe6 $16 {[%emt 0:02:41]} Nxe6 {[%emt 0:02:52]} (23... fxe6 $16 {was called for.} 24. Bc4 Rb2) 24. Bc4 $1 $18 {[%emt 0:01:45][%csl LRa2,LRe6]} Rxd2 {[%emt 0:06:17]} 25. Nxf6+ {[%emt 0:00:13]} Bxf6 {[%emt 0:00:03]} 26. Qxd2 {[%emt 0:00:07]} Bxd4+ {[%emt 0:00:03]} 27. Kh1 {[%emt 0:00:07]} bxc5 {[%emt 0:00:07]} 28. bxc5 {[%emt 0:01:12]} (28. Qa2 $18 Qc8 29. Re1) 28... Bxc5 $16 {[%emt 0:00:37]} 29. Qa2 {[%emt 0:05:21]} (29. Bxe6 $16 fxe6 30. Re1) 29... Nd8 $14 {[%emt 0:01:54]} 30. Re1 {[%emt 0:05:21][%mdl 1024] White has compensation.} Be7 {[%emt 0:04:35]} 31. Qe2 {[%emt 0:01:24]} Bf8 {[%emt 0:00:46]} 32. Qe8 {[%emt 0:02:16]} Nb7 {[%emt 0:00:47]} 33. Rd1 $1 {[%emt 0:00:48] White has more active pieces.} Qf4 {[%emt 0:02:35]} 34. Bxf7+ {[%emt 0:01:46]} Qxf7 {[%emt 0:00:03]} 35. Qxf7+ {[%emt 0:00:07]} Kxf7 {[%emt 0:00:02]} 36. Rd7+ {[%emt 0:00:09]} Ke6 {[%emt 0:01:28]} 37. Rxb7 {[%emt 0:00:08][%mdl 4096] Endgame KR-KB} c5 {[%emt 0:00:09][%cal Bc6c5,Bc5c4,Bc4c3][%mdl 32]} 38. Kg1 {[%emt 0:00:07]} Be7 {[%emt 0:00:29]} 39. Kf2 {[%emt 0:00:15]} Bf6 {[%emt 0:00:32]} 40. Ke3 {[%emt 0:04:36]} c4 {[%emt 0:01:34]} 41. Ke4 {[%emt 0:00:44]} Kd6 {[%emt 0:03:04]} 42. Rb5 {[%emt 0:00:35]} h6 {[%emt 0:02:13]} 43. Rd5+ {[%emt 0:00:50]} Kc6 {[%emt 0:00:39]} 44. g3 {[%emt 0:00:49]} c3 {[%emt 0:01:14]} 45. Rd1 $1 {[%emt 0:00:24]} Kc5 {[%emt 0:00:04]} 46. Kd3 {[%emt 0:00:04]} Kd5 {[%emt 0:00:58]} 47. Rf1 {[%emt 0:01:02]} Ke6 {[%emt 0:00:29]} 48. Rf4 {[%emt 0:00:45]} Kd5 {[%emt 0:00:27]} 49. Rc4 {[%emt 0:00:14]} Be5 {[%emt 0:00:46]} 50. Rc8 {[%emt 0:00:54]} Bf6 {[%emt 0:00:05] [#]} 51. Rb8 $1 {[%emt 0:02:54]} Be5 {[%emt 0:01:01]} 52. Rb5+ {[%emt 0:01:19]} Kd6 {[%emt 0:00:05]} 53. Ra5 {[%emt 0:00:41]} Bf6 {[%emt 0:00:28]} 54. Rf5 {[%emt 0:01:56]} Be5 {[%emt 0:00:39]} 55. Rf2 {[%emt 0:02:31]} Kd5 {[%emt 0:00:24]} 56. Rf8 {[%emt 0:01:36]} Bf6 {[%emt 0:00:29]} 57. Re8 {[%emt 0:00:36]} Be5 {[%emt 0:00:53]} 58. Rd8+ {[%emt 0:00:18]} Kc6 {[%emt 0:00:38]} 59. Kc2 {[%emt 0:00:59]} Kc5 {[%emt 0:00:17]} 60. Rd7 {[%emt 0:00:30]} Kc6 {[%emt 0:00:12]} 61. Rd3 {[%emt 0:00:26]} Kc5 {[%emt 0:00:12]} 62. Re3 {[%emt 0:00:37]} Bd4 {[%emt 0:00:48]} 63. Re1 {[%emt 0:00:20]} Kd5 {[%emt 0:00:46]} 64. Kd3 {[%emt 0:00:19]} Bf6 {[%emt 0:00:23]} 65. h4 {[%emt 0:00:16]} ({Better is} 65. g4 $16) 65... Be5 {[%emt 0:00:45]} 66. Re3 {[%emt 0:00:07]} Bf6 {[%emt 0:00:38]} (66... h5 $11) 67. Rf3 $16 {[%emt 0:00:27]} Ke5 {[%emt 0:00:31]} 68. Rf2 {[%emt 0:00:07]} (68. Kxc3 $2 {is the wrong capture.} Ke4+ 69. Kc4 Kxf3 $19) (68. h5 $16) 68... Kd5 {[%emt 0:00:17]} (68... h5 $11) 69. Rf5+ {[%emt 0:00:29]} Kd6 {[%emt 0:00:43]} 70. Ra5 {[%emt 0:01:50]} Kc6 {[%emt 0:00:27]} 71. Kc4 {[%emt 0:00:30]} Kd6 {[%emt 0:00:35] [#] Hoping for ...c2.} 72. Ra6+ {[%emt 0:00:24]} (72. Kb3 $1 $16) 72... Ke5 $11 {[%emt 0:00:28]} 73. Kxc3 {[%emt 0:00:40]} (73. Kd3 {keeps more tension.} Kf5 74. Ra4 h5 75. Rf4+) 73... Kf5+ {[%emt 0:00:06]} 74. Kd3 {[%emt 0:00:31]} Kg4 {[%emt 0:00:05]} 75. Ra4+ {[%emt 0:00:27]} Kxg3 {[%emt 0:00:11]} 76. h5 {[%emt 0:00:11]} Kf3 {[%emt 0:00:36]} 77. Rc4 {[%emt 0:00:23]} Bg5 {[%emt 0:00:34]} 78. Re4 {[%emt 0:00:48]} Bf6 {[%emt 0:00:22]} 79. Rb4 {[%emt 0:00:28]} Bg5 {[%emt 0:00:19]} 80. Rb1 {[%emt 0:00:43]} Bf6 {[%emt 0:01:23]} 81. Rg1 {[%emt 0:00:10]} Kf4 {[%emt 0:00:33]} 82. Kc4 {[%emt 0:00:09]} Ke4 {[%emt 0:00:42]} 83. Re1+ {[%emt 0:00:19]} Kf4 {[%emt 0:00:18]} 84. Kd5 {[%emt 0:00:26]} Kg4 {[%emt 0:00:22]} 85. Rh1 {[%emt 0:00:04]} Kg5 {[%emt 0:00:54]} 86. Ke6 {[%emt 0:00:29]} Bc3 {[%emt 0:00:37]} 87. Rc1 {[%emt 0:00:24]} Bf6 {[%emt 0:00:18]} 88. Rc5+ {[%emt 0:00:02]} Kg4 {[%emt 0:00:38]} 89. Kf7 {[%emt 0:00:07]} Bb2 {[%emt 0:00:31]} 90. Kg6 {[%emt 0:00:06]} Ba1 {[%emt 0:00:15]} 91. Rc4+ {[%emt 0:01:17]} Kg3 {[%emt 0:00:38]} 92. Kf5 {[%emt 0:00:18]} Kh3 {[%emt 0:00:25]} 93. Rg4 {[%emt 0:01:08]} Bb2 {[%emt 0:00:31]} 94. Kf4 {[%emt 0:01:59]} Bd4 {[%emt 0:00:33]} 95. Kf3 {[%emt 0:00:18]} Bf6 {[%emt 0:00:30]} 96. Re4 {[%emt 0:00:42]} (96. Rg1 $5 Kh4 $8 97. Rh1+ Kg5 98. Ke4 $14) 96... Bc3 {[%emt 0:00:37]} 97. Rf4 {[%emt 0:00:31]} Bf6 {[%emt 0:00:14]} 98. Rc4 {[%emt 0:00:03]} Be7 {[%emt 0:00:40]} 99. Rf4 {[%emt 0:00:48]} Bf6 {[%emt 0:00:06]} 100. Ke4 {[%emt 0:00:07]} Bb2 {[%emt 0:00:47]} 101. Kf5 {[%emt 0:00:35]} Ba1 {[%emt 0:00:28]} 102. Rf1 {[%emt 0:00:52]} Bb2 {[%emt 0:00:32]} 103. Kf4 {[%emt 0:00:23]} Bf6 {[%emt 0:00:35]} 104. Rh1+ {[%emt 0:00:42]} Kg2 {[%emt 0:00:01]} 105. Re1 {[%emt 0:00:27]} Kh3 {[%emt 0:00:24]} 106. Re2 {[%emt 0:00:22]} Bg5+ {[%emt 0:00:59] The position is equal.} 107. Kf3 {[%emt 0:00:38]} Bf6 {[%emt 0:00:14]} 108. Kf4 {[%emt 0:00:26]} (108. Re1 $5 Kh4 $8 109. Rh1+ Kg5 110. Ke4 $16) 108... Bg5+ {[%emt 0:00:15]} 109. Kf5 {[%emt 0:00:07]} Bf6 {[%emt 0:00:17]} 110. Re1 {[%emt 0:00:39]} Kg3 {[%emt 0:00:43]} 111. Kg6 {[%emt 0:00:29]} Kg4 {[%emt 0:00:30]} 112. Rb1 {[%emt 0:00:28]} Kh4 {[%emt 0:00:39]} 113. Rb4+ {[%emt 0:00:38]} Kg3 {[%emt 0:00:11]} 114. Kh7 {[%emt 0:00:19]} Kh3 {[%emt 0:00:15]} 115. Rf4 {[%emt 0:00:20][%cal Of4f6] Intending Rxf6! and mate.} Bb2 {[%emt 0:00:14]} 116. Rc4 {[%emt 0:00:58]} Bf6 {[%emt 0:00:09]} 117. Kg6 {[%emt 0:00:38]} Kg3 {[%emt 0:00:09]} 118. Rc7 {[%emt 0:00:17] Strongly threatening Rxg7.} Kg4 {[%emt 0:00:15]} 119. Rb7 {[%emt 0:00:27]} Kh4 {[%emt 0:00:29]} 120. Rb8 {[%emt 0:00:18] Black defended with fortune.   Weighted Error Value: White=0.08 (flawless) /Black=0.11 (very precise)   Mistake:       	White=5     	Black=4      Inaccurate:     	White=5     	Black=6      OK:         	White=37    	Black=37     Best:        	White=2     	Black=7      Strong:       	White=4     	---} 1/2-1/2

[Event "FIDE World School-ch O-15 2025"]
[Site "Vrnjacka Banja"]
[Date "2025.03.24"]
[Round "5.2"]
[White "Scheglov, Gleb"]
[Black "Kim, Yejun"]
[Result "1-0"]
[Annotator "TA"]
[ECO "A62"]
[WhiteElo "2306"]
[BlackElo "1798"]
[PlyCount "81"]
[EventDate "2025.03.19"]
[EventType "swiss"]
[EventCountry "SRB"]
[SourceTitle "playchess.com"]
[Source "ChessBase"]
[SourceQuality "1"]
[TimeControl "5400+30"]

{[%evp 19,81,29,35,29,39,41,39,49,53,43,104,105,127,123,122,118,137,114,254,228,270,258,268,265,423,442,419,412,415,0,299,286,228,85,231,225,351,350,344,329,380,380,452,448,827,576,527,0,874,832,949,906,868,533,29971,29972,29966,29973,29973,29974,29994,29995,29995,29973]} 1. d4 {[%emt 0:01:24]} Nf6 {[%emt 0:00:10]} 2. c4 {[%emt 0:00:07]} c5 {[%emt 0:00:16]} 3. d5 {[%emt 0:00:23]} e6 {[%emt 0:00:05]} 4. Nf3 {[%emt 0:00:37]} exd5 {[%emt 0:00:41]} 5. cxd5 {[%emt 0:00:01]} d6 {[%emt 0:00:09]} 6. Nc3 {[%emt 0:02:07]} g6 {[%emt 0:00:12]} 7. g3 {[%emt 0:00:06]} Bg7 {[%emt 0:00:04]} 8. Bg2 {[%emt 0:00:04]} O-O {[%emt 0:00:06][%cal Bh8f8,Bf8e8,Be8e5][%mdl 32]} 9. O-O {[%emt 0:00:03]} a6 {[%emt 0:00:48]} 10. a4 {[%emt 0:00:11][%cal Ba2a4,Ba4a5][%mdl 32]} Re8 {[%emt 0:00:06]} 11. Re1 {[%emt 0:00:05] A62: Modern Benoni: Fianchetto Variation without early ...Nbd7.} Qc7 {[%emt 0:03:00]} 12. a5 {[%emt 0:16:17]} Nbd7 {[%emt 0:08:39]} 13. Bf4 {[%emt 0:06:29] White is slightly better.} Nh5 {[%emt 0:02:01]} 14. Bd2 {[%emt 0:06:27]} Ne5 {[%emt 0:06:25]} ({Better is} 14... Rb8 $14) 15. Nxe5 $16 {[%emt 0:01:34]} Rxe5 $146 {[%emt 0:00:43] [#]} (15... Bxe5 16. Qb3 Bd7 17. Bf3 Ng7 18. Kg2 Nf5 19. e3 Qc8 20. Na4 Bxa4 21. Rxa4 Rb8 {1-0 Lukachewski Junior,W (2055)-Oliveira,T (2010) Titled Tuesday intern op 26th Nov Late blitz 2024 (8)}) 16. Na4 $1 {[%emt 0:03:08]} Bd7 {[%emt 0:01:37]} 17. Nb6 {[%emt 0:06:07]} Rae8 {[%emt 0:00:18]} 18. Rc1 {[%emt 0:04:18]} f5 {[%emt 0:01:47]} (18... Bb5 $16) 19. b4 $18 {[%emt 0:02:07]} Bb5 {[%emt 0:03:42][%cal Re5e2]} 20. bxc5 {[%emt 0:04:04]} Rxe2 {[%emt 0:08:16]} 21. Rxe2 {[%emt 0:01:34]} Rxe2 {[%emt 0:02:58]} (21... Bxe2 22. cxd6 Qxd6) 22. Bf3 {[%emt 0:01:32]} Re8 {[%emt 0:01:51]} 23. Bb4 {[%emt 0:01:22]} Bh6 {[%emt 0:06:25]} 24. Bd2 {[%emt 0:01:13]} (24. cxd6 $2 Qxc1 25. Qxc1 Bxc1 $19) (24. Rc2 $18) 24... Bxd2 $4 {[%emt 0:03:02][%mdl 8192]} (24... Bg7 $1 $11) 25. Qxd2 {[%emt 0:00:02] [#]} Nf6 {[%emt 0:00:53]} 26. Kg2 {[%emt 0:10:03]} (26. c6 $18 {and White stays clearly on top.}) 26... Nd7 {[%emt 0:06:47]} (26... Ne4 $16 {was worth a try.} 27. cxd6 Qxd6 28. Bxe4 Rxe4) 27. Nxd7 {[%emt 0:05:47]} Qxd7 {[%emt 0:00:04]} (27... Bxd7 $142 28. c6 bxc6) 28. c6 {[%emt 0:00:09]} Qg7 {[%emt 0:00:06]} 29. Qf4 {[%emt 0:01:15]} bxc6 {[%emt 0:01:50]} 30. dxc6 {[%emt 0:00:04]} Qc7 {[%emt 0:00:16]} 31. Qd4 {[%emt 0:02:39] Strongly threatening Bd5+.} Re5 {[%emt 0:00:16]} (31... h5 $142 32. h4 Kh7) 32. Qb6 {[%emt 0:00:47]} Re7 {[%emt 0:00:10]} 33. Qd4 {[%emt 0:03:26]} (33. h4 $142) 33... Re5 $1 {[%emt 0:00:07]} 34. Bd5+ {[%emt 0:00:24]} Kf8 {[%emt 0:00:09][%cal Bg8f8,Bf8e8,Be8e7,Be7d8,Bd8c8][%mdl 32]} 35. f4 {[%emt 0:00:12]} Re2+ {[%emt 0:04:42]} 36. Kh3 {[%emt 0:02:36] Threatening mate with Qh8+.} Ke8 {[%emt 0:04:32]} 37. Qh8+ {[%emt 0:00:17] White mates.} Ke7 {[%emt 0:00:06]} 38. Qxh7+ {[%emt 0:02:46]} Kd8 {[%emt 0:00:05]} 39. Qh4+ {[%emt 0:00:05]} Qe7 {[%emt 0:02:33]} 40. c7+ {[%emt 0:00:21]} Kc8 {[%emt 0:01:41]} 41. Qxe7 {[%emt 0:00:40] Weighted Error Value: White=0.69/Black=0.88  Loses game:     	---       	Black=1      Missed win:     	White=1     	---        Mistake:       	White=1     	Black=6      Inaccurate:     	White=1     	---        OK:         	White=8     	Black=4      Best:        	White=4     	---        Strong:       	White=1     	Black=1} 1-0

[Event "FIDE World School-ch O-15 2025"]
[Site "Vrnjacka Banja"]
[Date "2025.03.24"]
[Round "5.3"]
[White "Talgatov, Nazar"]
[Black "Ashikmamutov, Saidkhon"]
[Result "1-0"]
[Annotator "TA"]
[ECO "C60"]
[WhiteElo "2083"]
[BlackElo "1978"]
[PlyCount "67"]
[EventDate "2025.03.19"]
[EventType "swiss"]
[EventCountry "SRB"]
[SourceTitle "playchess.com"]
[Source "ChessBase"]
[SourceQuality "1"]
[TimeControl "5400+30"]

{[%evp 14,67,26,40,28,32,28,10,40,24,62,47,36,35,33,16,50,47,53,52,58,31,47,48,83,54,75,90,90,57,242,243,243,240,247,253,243,231,342,342,348,296,376,377,718,721,691,677,694,667,958,925,929,903,1676,1643]} 1. e4 {[%emt 0:00:22]} e5 {[%emt 0:00:30]} 2. Nf3 {[%emt 0:00:29]} Nc6 {[%emt 0:00:06]} 3. Bb5 {[%emt 0:00:48][%cal Bf1b5,Bb5a4,Ba4b3][%mdl 32]} a6 {[%emt 0:00:07]} 4. Ba4 {[%emt 0:00:37]} Nge7 {[%emt 0:00:07]} 5. O-O {[%emt 0:03:53]} g6 {[%emt 0:00:50]} 6. c3 {[%emt 0:05:06][%cal Bc2c3,Bc3d4,Bd4d5][%mdl 32]} Bg7 {[%emt 0:01:11]} 7. d4 {[%emt 0:05:56]} exd4 {[%emt 0:00:09]} 8. cxd4 {[%emt 0:00:08]} b5 {[%emt 0:00:08] C60: Ruy Lopez: Unusual Black 3rd moves and 3...g6.} 9. Bb3 {[%emt 0:01:10]} O-O {[%emt 0:09:24]} 10. Nc3 {[%emt 0:05:16]} d6 {[%emt 0:02:37] The position is equal.} 11. h3 {[%emt 0:00:33]} h6 {[%emt 0:05:47]} 12. d5 {[%emt 0:11:36]} Na5 {[%emt 0:00:07]} 13. Be3 {[%emt 0:01:17]} Nxb3 $146 {[%emt 0:22:58]} (13... c5 14. dxc6 Nxb3 15. axb3 Nxc6 16. Nd5 Be6 17. Qd2 Kh7 18. Rfc1 Bxd5 19. exd5 Ne7 {½-½ Movsesian,S (2646)-Stevic,H (2541) CRO-chT Rabac 2004 (1.1)}) 14. axb3 {[%emt 0:02:13]} Bb7 {[%emt 0:00:11]} 15. Qd2 {[%emt 0:00:51]} Kh7 {[%emt 0:04:58]} 16. Bd4 {[%emt 0:00:24]} f6 {[%emt 0:02:37]} 17. Rac1 {[%emt 0:03:41]} c5 {[%emt 0:08:55]} 18. dxc6 {[%emt 0:02:18]} Bxc6 {[%emt 0:00:15]} 19. Rfe1 {[%emt 0:14:09]} b4 {[%emt 0:10:02][%csl Oa6,Od6] Black has weak pawns} 20. Na4 {[%emt 0:01:32]} Rb8 {[%emt 0:00:07] Wards off Bb6} 21. Qe3 {[%emt 0:12:12] White has more active pieces.} Be8 $2 {[%emt 0:10:14] [#] Loses the game.} (21... h5 $14) 22. Bb6 $1 $18 {[%emt 0:01:17]} Qd7 {[%emt 0:00:01]} 23. Rc7 {[%emt 0:02:11] Inhibits Rb7.} Qe6 {[%emt 0:00:01]} 24. Nd4 {[%emt 0:01:51] Dodges Nc6} Qf7 {[%emt 0:00:01] [#]} 25. Ba5 $1 {[%emt 0:03:53]} Bb5 {[%emt 0:05:27]} (25... Rc8 $142 26. Rb7 Bxa4) 26. Nb6 {[%emt 0:01:46]} Rfe8 {[%emt 0:03:08]} 27. Qf3 {[%emt 0:01:35]} Qg8 {[%emt 0:04:09]} 28. Rd1 {[%emt 0:01:01]} Nc8 $2 {[%emt 0:02:29]} (28... Rbd8 29. Bxb4 Rb8) 29. Nd5 {[%emt 0:00:47] White is clearly winning.} Kh8 {[%emt 0:01:44]} 30. Nxf6 {[%emt 0:01:35] A dynamic duo of knights.} Qf8 {[%emt 0:00:37]} 31. Nxe8 {[%emt 0:00:22]} Qxe8 {[%emt 0:07:03]} 32. Bxb4 {[%emt 0:02:01]} Bd7 {[%emt 0:00:00]} 33. Bc3 {[%emt 0:00:25][%cal Od4e6] Threatens to win with Ne6!.} d5 {[%emt 0:00:00] [#]} 34. Ne6 $1 {[%emt 0:00:55] Weighted Error Value: White=0.08 (flawless) /Black=0.78  Loses game:     	---       	Black=1      Mistake:       	---       	Black=2      Inaccurate:     	White=3     	Black=4      OK:         	White=9     	Black=11     Best:        	White=1     	---        Strong:       	White=2     	---} 1-0

[Event "FIDE World School-ch O-15 2025"]
[Site "Vrnjacka Banja"]
[Date "2025.03.24"]
[Round "5.4"]
[White "Yessengali, Adizhan"]
[Black "Harabor, David-Alexandru"]
[Result "1-0"]
[Annotator "TA"]
[ECO "E09"]
[WhiteElo "1955"]
[BlackElo "1989"]
[PlyCount "75"]
[EventDate "2025.03.19"]
[EventType "swiss"]
[EventCountry "SRB"]
[SourceTitle "playchess.com"]
[Source "ChessBase"]
[SourceQuality "1"]
[TimeControl "5400+30"]

{[%evp 24,75,37,22,36,37,37,34,27,27,37,32,38,24,34,27,54,48,89,88,93,91,86,97,104,90,94,69,102,118,223,89,121,140,159,191,150,71,560,539,616,620,738,723,1059,1056,947,862,830,809,811,752,737,691]} 1. d4 {[%emt 0:01:21]} Nf6 {[%emt 0:00:33]} 2. c4 {[%emt 0:00:04]} e6 {[%emt 0:00:06]} 3. Nf3 {[%emt 0:00:11]} d5 {[%emt 0:00:35]} 4. g3 {[%emt 0:00:05]} c6 {[%emt 0:02:24]} 5. Bg2 {[%emt 0:03:18]} Nbd7 {[%emt 0:09:04]} 6. Nbd2 {[%emt 0:01:22]} Be7 {[%emt 0:01:02]} 7. O-O {[%emt 0:00:06]} O-O {[%emt 0:00:15]} 8. Qc2 {[%emt 0:00:01]} Re8 {[%emt 0:05:08]} 9. Rd1 {[%emt 0:02:26]} b6 {[%emt 0:12:33]} 10. e4 {[%emt 0:00:48]} dxe4 {[%emt 0:00:23]} 11. Nxe4 {[%emt 0:00:02]} Nxe4 {[%emt 0:00:26]} 12. Qxe4 {[%emt 0:00:08]} Bb7 {[%emt 0:00:03]} 13. Bf4 {[%emt 0:00:38]} Nf6 {[%emt 0:03:30] E09: Closed Catalan: Main Line: 7 Qc2 c6 8 Nbd2.} 14. Qc2 {[%emt 0:03:36]} Qc8 {[%emt 0:02:19]} 15. c5 {[%emt 0:00:55]} Nd5 {[%emt 0:08:58] White is slightly better.} 16. Bd2 {[%emt 0:04:37]} Qc7 $146 {[%emt 0:10:39]} ({Predecessor:} 16... Ba6 17. Re1 bxc5 18. dxc5 Bf6 19. a3 Qb8 20. Rab1 h6 21. b4 Qc7 22. Bc1 Rad8 {1-0 Haba,P (2570)-Lehner,O (2420) Vienna op 13th 1998}) 17. b4 {[%emt 0:02:44]} Bf6 {[%emt 0:07:21]} 18. Re1 {[%emt 0:22:35]} Rad8 {[%emt 0:10:25]} 19. Rad1 {[%emt 0:08:42]} Re7 {[%emt 0:05:47]} 20. Ng5 {[%emt 0:13:49]} Bxg5 {[%emt 0:02:51]} 21. Bxg5 {[%emt 0:00:08]} f6 {[%emt 0:00:01]} (21... Nxb4 22. Qb3 bxc5 23. Bxe7 (23. dxc5 Nd5 $18) 23... Qxe7 24. dxc5) 22. Bd2 {[%emt 0:00:33]} e5 {[%emt 0:03:12]} 23. dxe5 {[%emt 0:06:05]} Rxe5 {[%emt 0:02:13]} 24. Rxe5 {[%emt 0:00:41]} Qxe5 {[%emt 0:06:19] [#]} 25. Bf4 $1 {[%emt 0:01:09]} Qe7 {[%emt 0:00:55]} (25... Qh5 26. cxb6) 26. Bd6 {[%emt 0:07:22] A strong pair of Bishops.} Qf7 {[%emt 0:00:19] [#]} (26... Qe6 $16) 27. Qb3 {[%emt 0:00:42]} (27. b5 $1 $18 {and the rest is easy.}) 27... Ne7 {[%emt 0:03:57]} 28. Qa4 {[%emt 0:01:12] White has more active pieces.} (28. Bxe7 Rxd1+ 29. Qxd1 Qxe7 $11) 28... Nd5 {[%emt 0:01:54]} 29. Qxa7 {[%emt 0:02:49]} bxc5 {[%emt 0:00:32] [#]} 30. bxc5 $40 {[%emt 0:08:38][%mdl 128] White is out for blood.} ({Don't take} 30. Bxc5 Ra8 31. Bxd5 cxd5 $14) ({White should play} 30. b5 $1 {[%cal Rb5c6] Strongly threatening bxc6.} Nc3 31. Qa5 (31. bxc6 Bxc6 32. Qb6 Ne2+ 33. Kh1 Bxg2+ 34. Kxg2 Qd7 $11) 31... Ne2+ 32. Kf1) 30... Nc3 $2 {[%emt 0:00:33][%mdl 8192] Black cannot hold the game after this.} (30... Ra8 $16 {is a better chance.} 31. Bxd5 cxd5) 31. Re1 $18 {[%emt 0:01:48] White is clearly winning.} Ra8 {[%emt 0:00:54]} 32. Qb6 {[%emt 0:00:06]} Na4 {[%emt 0:00:41]} 33. Qb4 {[%emt 0:00:23]} Qd7 {[%emt 0:00:37] Black is weak on the dark squares} 34. Re7 {[%emt 0:00:17]} Qc8 {[%emt 0:00:25]} 35. Qxb7 {[%emt 0:00:06]} Qxb7 {[%emt 0:00:29]} 36. Rxb7 {[%emt 0:00:05]} Nc3 {[%emt 0:00:20]} 37. Rb8+ {[%emt 0:00:14]} Rxb8 {[%emt 0:00:16]} 38. Bxb8 {[%emt 0:00:02] Weighted Error Value: White=0.20 (precise) /Black=0.55  Loses game:     	---       	Black=1      Mistake:       	White=2     	Black=1      Inaccurate:     	---       	Black=4      OK:         	White=7     	Black=3      Best:        	White=1     	Black=1} 1-0